bitfinex/quotes_BTCUSD_20241123
["timestamp","ask_amount","ask_price","bid_price","bid_amount"]
[1732332584350,0.09160586,98440.0,98396.0,0.65223426]
[1732332584351,0.00101618,98439.0,98417.0,0.0761]
[1732332584994,0.00101618,98439.0,98417.0,0.0311]
[1732332585745,0.00101618,98439.0,98398.0,0.13643897]
[1732332585746,0.00101618,98439.0,98400.0,0.1354229]
[1732332585949,0.0008604,98440.0,98405.0,0.023]
[1732332586225,0.0008604,98440.0,98406.0,0.00101598]
[1732332586434,0.0008604,98440.0,98402.0,0.00101598]
[1732332586909,0.0008604,98440.0,98397.0,0.023]
[1732332586910,0.0008604,98440.0,98398.0,0.00101598]
[1732332587332,0.0008604,98440.0,98408.0,0.047]
[1732332587526,0.0008607,98437.0,98409.0,0.04801598]
[1732332587660,0.00101618,98436.0,98409.0,0.04801598]
[1732332588075,0.00101618,98436.0,98411.0,0.047]
[1732332588292,0.00101618,98436.0,98412.0,0.12411598]
[1732332588490,0.00101618,98436.0,98412.0,0.00101598]
[1732332588703,0.3303,98453.0,98407.0,0.0017214]
[1732332588704,0.25,98453.0,98408.0,0.00101598]
[1732332588915,0.25,98453.0,98416.0,0.0781]
[1732332589119,0.25,98453.0,98417.0,0.07711592]
[1732332589770,0.0468,98457.0,98417.0,0.07711592]
[1732332589974,0.0468,98457.0,98418.0,0.023]
[1732332590184,0.0468,98457.0,98419.0,0.0761]
[1732332590415,0.0468,98457.0,98420.0,0.0761]
[1732332590621,0.0468,98457.0,98421.0,0.00101584]
[1732332590818,0.0468,98457.0,98420.0,0.0761]
[1732332592158,0.0468,98457.0,98421.0,0.08311584]
[1732332592961,0.04782079,98461.0,98421.0,0.03211584]
[1732332593162,0.04782079,98461.0,98422.0,0.047]
[1732332593367,0.04782079,98461.0,98424.0,0.047]
[1732332593569,0.04782079,98461.0,98425.0,0.00101584]
[1732332595697,0.04782079,98461.0,98424.0,0.047]
[1732332595896,0.29782079,98461.0,98424.0,0.047]
[1732332596050,0.0494,98460.0,98425.0,0.0797]
[1732332596276,0.0494,98458.0,98425.0,0.0797]
[1732332596509,0.0494,98455.0,98425.0,0.0797]
[1732332597081,0.0829,98454.0,98424.0,0.047]
[1732332597474,0.0494,98453.0,98421.0,0.04208611]
[1732332597693,0.0829,98450.0,98416.0,0.0496]
[1732332598341,0.0829,98450.0,98416.0,0.09067594]
[1732332598841,0.0829,98450.0,98417.0,0.08071598]
[1732332598842,0.00189999,98450.0,98417.0,0.08071598]
[1732332600648,0.00276059,98450.0,98417.0,0.08071598]
[1732332601272,0.00276059,98450.0,98417.0,0.03571598]
[1732332601913,0.0008606,98450.0,98418.0,0.0496]
[1732332602114,0.0008606,98450.0,98420.0,0.023]
[1732332602320,0.0008606,98450.0,98422.0,0.0496]
[1732332602527,0.0008606,98450.0,98423.0,0.023]
[1732332603569,0.00276059,98462.0,98425.0,0.023]
[1732332603782,0.00276059,98462.0,98426.0,0.0818]
[1732332603991,0.00276059,98462.0,98427.0,0.023]
[1732332605210,0.00276059,98462.0,98426.0,0.0598]
[1732332606291,0.00276059,98462.0,98427.0,0.00101576]
[1732332606676,0.00276059,98462.0,98426.0,0.00101576]
[1732332606884,0.04169516,98474.0,98427.0,0.0818]
[1732332607096,0.04169516,98474.0,98428.0,0.04991576]
[1732332607249,0.04169516,98474.0,98429.0,0.0818]
[1732332607455,0.04169516,98474.0,98430.0,0.00101576]
[1732332607679,0.04169516,98474.0,98431.0,0.0489]
[1732332607859,0.04169516,98474.0,98432.0,0.00101575]
[1732332608090,0.04169516,98474.0,98433.0,0.00101575]
[1732332608264,0.04169516,98474.0,98434.0,0.0818]
[1732332608649,0.04169516,98474.0,98435.0,0.08242209]
[1732332608876,0.25,98480.0,98436.0,0.1307]
[1732332609051,0.25,98480.0,98437.0,0.00101569]
[1732332609277,0.25,98480.0,98438.0,0.00101569]
[1732332609486,0.25,98480.0,98436.0,0.1307]
[1732332609487,0.25,98480.0,98437.0,0.00101569]
[1732332609692,0.1247,98471.0,98437.0,0.00101569]
[1732332610141,0.00101572,98470.0,98436.0,0.12699679]
[1732332610333,0.00101572,98470.0,98437.0,0.00101569]
[1732332610532,0.00101572,98470.0,98439.0,0.0818]
[1732332611011,0.04471571,98471.0,98439.0,0.0818]
[1732332612973,0.04471571,98471.0,98440.0,0.00101568]
[1732332613396,0.0008606,98470.0,98440.0,0.00101568]
[1732332614015,0.046,98469.0,98440.0,0.00101568]
[1732332614610,0.046,98469.0,98441.0,0.0489]
[1732332614850,0.04471571,98471.0,98442.0,0.00101568]
[1732332614851,0.0105763,98471.0,98442.0,0.00101568]
[1732332615057,0.0105763,98471.0,98443.0,0.0813]
[1732332615262,0.0105763,98471.0,98444.0,0.00101568]
[1732332617270,0.0105763,98471.0,98445.0,0.0473]
[1732332617476,0.0105763,98471.0,98445.0,0.04831568]
[1732332618842,0.22860055,98482.0,98445.0,0.04831568]
[1732332619086,0.22860055,98482.0,98446.0,0.0473]
[1732332619321,0.0474,98481.0,98446.0,0.0023]
[1732332619805,0.2974,98481.0,98446.0,0.0023]
[1732332621269,0.2974,98481.0,98446.0,0.00331568]
[1732332621746,0.076,98480.0,98446.0,0.00331568]
[1732332622456,0.076,98480.0,98446.0,0.0023]
[1732332623148,0.076,98480.0,98436.0,0.0338811]
[1732332623359,0.29239999,98481.0,98422.0,0.1248]
[1732332623583,0.29239999,98481.0,98430.0,0.0789]
[1732332623794,0.29239999,98481.0,98432.0,0.0789]
[1732332624000,0.29239999,98481.0,98434.0,0.0789]
[1732332624180,0.29239999,98481.0,98436.0,0.0789]
[1732332624422,0.03337239,98480.0,98438.0,0.0789]
[1732332624628,0.29326059,98481.0,98440.0,0.0789]
[1732332624855,0.29326059,98481.0,98441.0,0.0459]
[1732332626524,0.076,98480.0,98441.0,0.0459]
[1732332626735,0.0452,98479.0,98417.0,0.0221219]
[1732332626939,0.023,98478.0,98418.0,0.1063]
[1732332627143,0.023,98478.0,98418.0,0.0613]
[1732332627794,0.023,98476.0,98418.0,0.0613]
[1732332628635,0.0452,98478.0,98418.0,0.0613]
[1732332628844,0.023,98475.0,98418.0,0.0613]
[1732332629105,0.0452,98474.0,98418.0,0.0613]
[1732332629337,0.0452,98467.0,98418.0,0.0613]
[1732332629790,0.0452,98467.0,98419.0,0.1248]
[1732332629955,0.0452,98467.0,98424.0,0.0789]
[1732332630194,0.0452,98467.0,98425.0,0.0459]
[1732332630425,0.0452,98467.0,98426.0,0.0789]
[1732332630815,0.076,98468.0,98418.0,0.0613]
[1732332630816,0.04019999,98468.0,98430.0,0.0459]
[1732332631074,0.04019999,98468.0,98432.0,0.0459]
[1732332631302,0.04019999,98468.0,98433.0,0.0339]
[1732332633803,0.0452,98467.0,98433.0,0.0339]
[1732332634599,0.04019999,98468.0,98433.0,0.0339]
[1732332634600,0.00439998,98468.0,98434.0,0.0486]
[1732332635219,0.0473,98467.0,98434.0,0.0036]
[1732332637195,0.00612098,98468.0,98435.0,0.0784]
[1732332637404,0.00612098,98468.0,98436.0,0.0784]
[1732332638234,0.00612098,98468.0,98437.0,0.0486]
[1732332638442,0.00612098,98468.0,98439.0,0.0486]
[1732332638648,0.00612098,98468.0,98441.0,0.0486]
[1732332638853,0.01269692,98476.0,98441.0,0.0486]
[1732332639059,0.09072565,98480.0,98441.0,0.0486]
[1732332639060,0.023,98479.0,98441.0,0.0486]
[1732332639278,0.023,98477.0,98440.0,0.0784]
[1732332641754,0.0799,98476.0,98440.0,0.0784]
[1732332642369,0.0799,98476.0,98441.0,0.0486]
[1732332642761,0.02189999,98477.0,98441.0,0.0486]
[1732332642965,0.02189999,98477.0,98442.0,0.0774]
[1732332643180,0.01689999,98477.0,98442.0,0.0324]
[1732332643394,0.0799,98476.0,98441.0,0.0486]
[1732332645321,0.0799,98476.0,98441.0,0.04642432]
[1732332645559,0.17062565,98476.0,98441.0,0.04642432]
[1732332646258,0.17062565,98476.0,98442.0,0.0774]
[1732332647150,0.17062565,98476.0,98442.0,0.0324]
[1732332647356,0.0799,98476.0,98442.0,0.0324]
[1732332647568,0.09085363,98475.0,98442.0,0.0324]
[1732332647984,0.08975362,98476.0,98442.0,0.0324]
[1732332648429,0.0799,98476.0,98442.0,0.0324]
[1732332648853,0.0807605,98476.0,98442.0,0.0324]
[1732332650562,0.0807605,98476.0,98443.0,0.0486]
[1732332651181,0.0807605,98476.0,98444.0,0.00461567]
[1732332651393,0.04931567,98475.0,98444.0,0.00461567]
[1732332652655,0.04931567,98475.0,98445.0,0.0774]
[1732332652877,0.04931567,98475.0,98446.0,0.0774]
[1732332653113,0.0483,98475.0,98447.0,0.07841559]
[1732332653329,0.0483,98475.0,98449.0,0.0774]
[1732332653535,0.0483,98475.0,98442.0,0.04134228]
[1732332653536,0.00101567,98474.0,98451.0,0.0774]
[1732332654715,0.1282,98473.0,98451.0,0.0774]
[1732332654954,0.00101567,98472.0,98451.0,0.0774]
[1732332655180,0.00101567,98472.0,98451.0,0.0324]
[1732332656469,0.04821566,98473.0,98451.0,0.0324]
[1732332657074,0.0008605,98476.0,98452.0,0.0479]
[1732332658192,0.09088084,98475.0,98452.0,0.0479]
[1732332658627,0.0008605,98476.0,98452.0,0.0479]
[1732332659222,0.046,98474.0,98452.0,0.0029]
[1732332659427,0.121,98474.0,98452.0,0.0029]
[1732332659601,0.03999999,98474.0,98452.0,0.0029]
[1732332660737,0.0008605,98476.0,98452.0,0.0029]
[1732332661905,0.09174134,98476.0,98452.0,0.0029]
[1732332662144,0.09088084,98475.0,98452.0,0.04411427]
[1732332662344,0.09088084,98475.0,98452.0,0.0029]
[1732332662555,0.0008605,98476.0,98453.0,0.22809194]
[1732332662757,0.0008605,98476.0,98453.0,0.0474]
[1732332663185,0.0008605,98476.0,98453.0,0.0024]
[1732332663751,0.0008605,98476.0,98454.0,0.03061949]
[1732332664609,0.0008606,98481.0,98454.0,0.03061949]
[1732332665918,0.0008606,98481.0,98456.0,0.079]
[1732332666117,0.13216892,98482.0,98456.0,0.079]
[1732332667204,0.13216892,98482.0,98456.0,0.034]
[1732332667674,0.023,98481.0,98456.0,0.034]
[1732332667898,0.0456,98484.0,98456.0,0.034]
[1732332668124,0.33543194,98483.0,98456.0,0.034]
[1732332668361,0.1208,98481.0,98453.0,0.0024]
[1732332668606,0.1208,98481.0,98433.0,0.0008605]
[1732332668607,0.14150082,98480.0,98439.0,0.0474]
[1732332668832,0.07770318,98480.0,98439.0,0.0474]
[1732332669065,0.18174442,98478.0,98439.0,0.0474]
[1732332669304,0.1208,98475.0,98439.0,0.0474]
[1732332669549,0.1208,98473.0,98439.0,0.0474]
[1732332669827,0.0456,98472.0,98440.0,0.00101572]
[1732332670324,0.0686,98468.0,98440.0,0.079]
[1732332670554,0.0456,98464.0,98440.0,0.079]
[1732332671381,0.0456,98464.0,98440.0,0.034]
[1732332672197,0.023,98464.0,98440.0,0.034]
[1732332672427,0.023,98464.0,98440.0,0.07415247]
[1732332672634,0.023,98464.0,98440.0,0.034]
[1732332672838,0.023,98464.0,98433.0,0.0008605]
[1732332672839,0.023,98471.0,98433.0,0.0008605]
[1732332673055,0.023,98459.0,98433.0,0.0008605]
[1732332673476,0.18174442,98464.0,98433.0,0.0008605]
[1732332673477,0.023,98464.0,98433.0,0.0008605]
[1732332673696,0.023,98462.0,98433.0,0.0008605]
[1732332673922,0.023,98460.0,98433.0,0.0008605]
[1732332674132,0.023,98462.0,98433.0,0.0008605]
[1732332674353,0.023,98462.0,98440.0,0.0017208]
[1732332674580,0.023,98455.0,98440.0,0.0017208]
[1732332675293,0.023,98453.0,98440.0,0.0017208]
[1732332678270,0.00101591,98452.0,98399.0,0.20436193]
[1732332678615,0.00101591,98452.0,98400.0,0.00101591]
[1732332678616,0.0478,98451.0,98400.0,0.00101591]
[1732332678844,0.02401591,98450.0,98396.0,0.46988827]
[1732332679041,0.02401591,98450.0,98396.0,0.51099132]
[1732332679042,0.023,98446.0,98396.0,0.51099132]
[1732332679244,0.00101591,98445.0,98396.0,0.51099132]
[1732332679424,0.023,98442.0,98397.0,0.001016]
[1732332679651,0.00101591,98441.0,98397.0,0.001016]
[1732332679854,0.023,98439.0,98397.0,0.001016]
[1732332680053,0.00101591,98438.0,98397.0,0.001016]
[1732332680489,0.00101591,98438.0,98396.0,0.51099132]
[1732332680912,0.00101591,98438.0,98397.0,0.001016]
[1732332681336,0.00101591,98438.0,98398.0,0.1291]
[1732332681974,0.00101591,98438.0,98399.0,0.001016]
[1732332682180,0.00101591,98438.0,98400.0,0.0814]
[1732332682642,0.1271,98437.0,98401.0,0.001016]
[1732332682856,0.02401591,98436.0,98401.0,0.001016]
[1732332683277,0.0701159,98437.0,98401.0,0.001016]
[1732332685090,0.023,98436.0,98401.0,0.001016]
[1732332686038,0.0458,98435.0,98401.0,0.001016]
[1732332686267,0.023,98434.0,98401.0,0.001016]
[1732332686934,0.0701159,98437.0,98401.0,0.001016]
[1732332686935,0.05791589,98437.0,98401.0,0.001016]
[1732332687064,0.05791589,98437.0,98402.0,0.0477]
[1732332687269,0.05791589,98437.0,98403.0,0.00101609]
[1732332687514,0.05791589,98437.0,98405.0,0.0477]
[1732332687672,0.05791589,98437.0,98406.0,0.00101609]
[1732332689808,0.05791589,98437.0,98406.0,0.04295758]
[1732332690039,0.05791589,98437.0,98406.0,0.00101609]
[1732332690720,0.05791589,98437.0,98407.0,0.1291]
[1732332690950,0.05791589,98437.0,98409.0,0.0477]
[1732332691159,0.05791589,98437.0,98412.0,0.0814]
[1732332691396,0.05791589,98437.0,98413.0,0.0477]
[1732332692009,0.22691588,98445.0,98413.0,0.0477]
[1732332692839,0.22691588,98445.0,98414.0,0.04871597]
[1732332693015,0.22691588,98445.0,98416.0,0.0477]
[1732332693216,0.22691588,98445.0,98400.0,0.001721]
[1732332693217,0.22691588,98445.0,98421.0,0.0477]
[1732332693825,0.0008605,98455.0,98421.0,0.0477]
[1732332694229,0.0008605,98455.0,98400.0,0.001721]
[1732332694230,0.0008605,98455.0,98423.0,0.0477]
[1732332694435,0.0008605,98455.0,98425.0,0.0477]
[1732332695079,0.04366049,98458.0,98426.0,0.0759]
[1732332695435,0.04366049,98458.0,98427.0,0.0489]
[1732332696902,0.29366049,98458.0,98427.0,0.0489]
[1732332697945,0.25,98456.0,98427.0,0.0489]
[1732332698883,0.16899999,98456.0,98427.0,0.0489]
[1732332699719,0.002,98447.0,98427.0,0.0489]
[1732332700120,0.002,98444.0,98427.0,0.0489]
[1732332701143,0.1263,98446.0,98427.0,0.0489]
[1732332701362,0.1263,98446.0,98420.0,0.047]
[1732332701993,0.25,98445.0,98420.0,0.047]
[1732332703100,0.16899999,98445.0,98420.0,0.047]
[1732332703754,0.1263,98446.0,98420.0,0.047]
[1732332704006,0.25,98441.0,98420.0,0.047]
[1732332707398,0.07970318,98440.0,98420.0,0.047]
[1732332707612,0.002,98440.0,98420.0,0.047]
[1732332707877,0.25,98435.0,98420.0,0.047]
[1732332708085,0.16899999,98435.0,98420.0,0.047]
[1732332709975,0.1249185,98446.0,98420.0,0.047]
[1732332710368,0.023,98445.0,98420.0,0.047]
[1732332711254,0.0419185,98446.0,98420.0,0.047]
[1732332711457,0.0419185,98446.0,98420.0,0.0487214]
[1732332711662,0.0008607,98441.0,98420.0,0.0487214]
[1732332713051,0.25,98440.0,98420.0,0.0487214]
[1732332714853,0.2508607,98441.0,98420.0,0.0487214]
[1732332716965,0.25,98440.0,98420.0,0.0487214]
[1732332717195,0.16899999,98440.0,98420.0,0.0487214]
[1732332717655,0.16899999,98440.0,98422.0,0.0475]
[1732332717871,0.16899999,98440.0,98396.0,0.34971691]
[1732332718122,0.16899999,98440.0,98397.0,0.023]
[1732332718785,0.2508607,98441.0,98397.0,0.023]
[1732332719219,0.2508607,98441.0,98398.0,0.00101601]
[1732332719661,0.2508607,98441.0,98397.0,0.023]
[1732332719877,0.25,98440.0,98397.0,0.023]
[1732332720306,0.34080968,98440.0,98396.0,0.39025175]
[1732332720519,0.09080968,98439.0,98396.0,0.39025175]
[1732332720754,0.34080968,98440.0,98396.0,0.39025175]
[1732332720972,0.25,98440.0,98399.0,0.0787]
[1732332721191,0.16899999,98440.0,98401.0,0.0787]
[1732332721414,0.25980967,98440.0,98406.0,0.1237]
[1732332721630,0.25980967,98440.0,98411.0,0.1237]
[1732332721840,0.16899999,98440.0,98412.0,0.045]
[1732332722271,0.09080968,98439.0,98412.0,0.045]
[1732332723812,0.09080968,98439.0,98412.0,0.04]
[1732332724236,0.09080968,98438.0,98412.0,0.04]
[1732332725098,0.00980967,98438.0,98412.0,0.04]
[1732332727093,0.2508607,98440.0,98412.0,0.04]
[1732332727547,0.2508607,98440.0,98413.0,0.07971608]
[1732332727782,0.2508607,98440.0,98415.0,0.0787]
[1732332728027,0.0008607,98440.0,98416.0,0.045]
[1732332728233,0.0008607,98440.0,98417.0,0.0787]
[1732332728442,0.0008607,98440.0,98418.0,0.045]
[1732332728678,0.0008607,98440.0,98419.0,0.0787]
[1732332728945,0.0008607,98440.0,98421.0,0.0787]
[1732332729149,0.0008607,98440.0,98422.0,0.045]
[1732332729353,0.0008607,98440.0,98421.0,0.0787]
[1732332729354,0.0008607,98440.0,98423.0,0.0787]
[1732332729558,0.0008607,98440.0,98424.0,0.045]
[1732332729767,0.0008607,98440.0,98425.0,0.0787]
[1732332730009,0.0008607,98440.0,98426.0,0.045]
[1732332730223,0.05706026,98450.0,98426.0,0.045]
[1732332730856,0.22207914,98454.0,98426.0,0.045]
[1732332731078,0.33549822,98453.0,98426.0,0.045]
[1732332732921,0.51728338,98453.0,98426.0,0.045]
[1732332733176,0.18177151,98449.0,98426.0,0.045]
[1732332733415,0.33549625,98448.0,98426.0,0.045]
[1732332733669,0.1007715,98450.0,98425.0,0.0787]
[1732332734156,0.5627185,98454.0,98425.0,0.0787]
[1732332734157,0.33550411,98449.0,98425.0,0.0787]
[1732332734379,0.22721439,98455.0,98425.0,0.0787]
[1732332734600,0.03157168,98454.0,98425.0,0.0787]
[1732332734831,0.33550444,98453.0,98425.0,0.0787]
[1732332735060,0.09088797,98443.0,98425.0,0.0787]
[1732332735326,0.09088797,98442.0,98425.0,0.0787]
[1732332735570,0.09088797,98440.0,98425.0,0.0787]
[1732332735834,0.09088797,98439.0,98425.0,0.0787]
[1732332737256,0.00988796,98440.0,98425.0,0.0787]
[1732332737479,0.08541218,98443.0,98425.0,0.0337]
[1732332738026,0.16181218,98443.0,98425.0,0.0337]
[1732332738757,0.25,98446.0,98425.0,0.0337]
[1732332741402,0.16899999,98446.0,98425.0,0.0337]
[1732332741635,0.16899999,98446.0,98422.0,0.0362]
[1732332742276,0.3053392,98446.0,98422.0,0.0362]
[1732332742705,0.3053791,98446.0,98422.0,0.0362]
[1732332742928,0.38637911,98446.0,98422.0,0.0362]
[1732332743589,0.13637911,98445.0,98422.0,0.0362]
[1732332744516,0.13637911,98444.0,98423.0,0.083]
[1732332744981,0.13637911,98445.0,98423.0,0.083]
[1732332745416,0.0553791,98445.0,98423.0,0.083]
[1732332745646,0.0553791,98445.0,98423.0,0.038]
[1732332746110,0.25,98446.0,98423.0,0.038]
[1732332747216,0.09093637,98441.0,98423.0,0.038]
[1732332748104,0.09093637,98439.0,98423.0,0.038]
[1732332748557,0.09093637,98438.0,98422.0,0.0370608]
[1732332748770,0.0489,98437.0,98422.0,0.0370608]
[1732332748982,0.0489,98437.0,98422.0,0.0008608]
[1732332749430,0.13803636,98438.0,98422.0,0.0008608]
[1732332749651,0.0792,98438.0,98417.0,0.0463]
[1732332749863,0.33572599,98437.0,98417.0,0.0463]
[1732332750083,0.41492599,98437.0,98417.0,0.0463]
[1732332750306,0.002,98435.0,98417.0,0.0463]
[1732332750551,0.07770318,98430.0,98397.0,0.0463]
[1732332750815,0.0792,98429.0,98397.0,0.0463]
[1732332751488,0.33564141,98428.0,98397.0,0.0463]
[1732332751721,0.33565672,98427.0,98397.0,0.0463]
[1732332751954,0.25,98424.0,98397.0,0.0463]
[1732332753626,0.25,98424.0,98397.0,0.0013]
[1732332756227,0.16899999,98424.0,98397.0,0.0013]
[1732332757567,0.16899999,98424.0,98396.0,0.30601691]
[1732332757783,0.25,98424.0,98396.0,0.30601691]
[1732332759114,0.07770318,98420.0,98396.0,0.30601691]
[1732332759321,0.0796,98419.0,98396.0,0.30601691]
[1732332760213,0.023,98422.0,98396.0,0.30601691]
[1732332760627,0.023,98422.0,98397.0,0.0461]
[1732332761485,0.07770318,98420.0,98397.0,0.0011]
[1732332761697,0.0493,98421.0,98396.0,0.30601691]
[1732332762968,0.25,98417.0,98396.0,0.30601691]
[1732332764205,0.16899999,98417.0,98396.0,0.30601691]
[1732332765763,0.16899999,98417.0,98396.0,0.26101691]
[1732332765989,0.25,98417.0,98396.0,0.26101691]
[1732332768049,0.0493,98416.0,98396.0,0.26101691]
[1732332768279,0.07770318,98410.0,98396.0,0.26101691]
[1732332768488,0.023,98415.0,98396.0,0.26101691]
[1732332768720,0.0493,98415.0,98396.0,0.26101691]
[1732332768932,0.25,98411.0,98396.0,0.26101691]
[1732332769360,0.0493,98409.0,98396.0,0.26101691]
[1732332769581,0.0796,98408.0,98383.0,0.03254938]
[1732332770884,0.29789999,98409.0,98383.0,0.03254938]
[1732332771791,0.25,98407.0,98383.0,0.03254938]
[1732332773445,0.25,98407.0,98384.0,0.07951635]
[1732332773645,0.25,98407.0,98386.0,0.0785]
[1732332773848,0.0333359,98410.0,98385.0,0.0461]
[1732332774181,0.0493,98413.0,98385.0,0.0461]
[1732332776305,0.21829999,98415.0,98385.0,0.0461]
[1732332776936,0.25,98416.0,98387.0,0.0466]
[1732332777751,0.25,98416.0,98387.0,0.0016]
[1732332777752,0.2988,98415.0,98387.0,0.0016]
[1732332779956,0.0488,98415.0,98387.0,0.0016]
[1732332780450,0.21779999,98416.0,98387.0,0.0016]
[1732332780866,0.03495875,98417.0,98387.0,0.0016]
[1732332780867,0.25,98407.0,98387.0,0.0016]
[1732332781730,0.25,98407.0,98386.0,0.0317]
[1732332781946,0.08,98406.0,98386.0,0.0317]
[1732332782154,0.08,98406.0,98383.0,0.000861]
[1732332782797,0.08,98406.0,98383.0,0.03043374]
[1732332783036,0.08,98406.0,98383.0,0.000861]
[1732332784420,0.24899999,98407.0,98384.0,0.0833]
[1732332784843,0.24899999,98407.0,98385.0,0.0474]
[1732332785069,0.0454,98405.0,98385.0,0.0474]
[1732332785776,0.25,98402.0,98383.0,0.000861]
[1732332786007,0.0454,98401.0,98383.0,0.000861]
[1732332787653,0.0821,98400.0,98383.0,0.000861]
[1732332788585,0.00109999,98400.0,98383.0,0.000861]
[1732332790811,0.00109999,98400.0,98375.0,0.039161]
[1732332791856,0.25,98398.0,98375.0,0.039161]
[1732332792698,0.16899999,98398.0,98375.0,0.039161]
[1732332792910,0.25,98392.0,98375.0,0.039161]
[1732332793333,0.0454,98391.0,98375.0,0.039161]
[1732332795668,0.0454,98391.0,98366.0,0.041561]
[1732332796759,0.21439999,98392.0,98366.0,0.041561]
[1732332798755,0.21439999,98392.0,98367.0,0.0776]
[1732332798971,0.25,98392.0,98367.0,0.0776]
[1732332799879,0.25,98392.0,98367.0,0.0326]
[1732332800099,0.25,98392.0,98368.0,0.0451]
[1732332800525,0.16899999,98392.0,98368.0,0.0451]
[1732332800963,0.023,98396.0,98368.0,0.0451]
[1732332801863,0.273,98396.0,98368.0,0.0451]
[1732332803849,0.273,98396.0,98368.0,0.0001]
[1732332804694,0.19199999,98396.0,98368.0,0.0001]
[1732332806902,0.25,98396.0,98368.0,0.0001]
[1732332807788,0.25,98396.0,98357.0,0.02238046]
[1732332807998,0.25,98396.0,98350.0,0.09033628]
[1732332808214,0.25,98396.0,98349.0,0.09033628]
[1732332808622,0.16899999,98396.0,98349.0,0.09033628]
[1732332809958,0.16899999,98396.0,98353.0,0.09033628]
[1732332810179,0.16899999,98396.0,98352.0,0.09033628]
[1732332810453,0.0474,98395.0,98353.0,0.09033628]
[1732332810895,0.0474,98395.0,98358.0,0.0827]
[1732332811116,0.0474,98395.0,98360.0,0.0827]
[1732332811334,0.0474,98395.0,98361.0,0.0484]
[1732332811797,0.0474,98395.0,98361.0,0.0034]
[1732332812007,0.0474,98395.0,98368.0,0.0008604]
[1732332812864,0.21812079,98396.0,98368.0,0.0008604]
[1732332814787,0.46812079,98396.0,98368.0,0.0008604]
[1732332814990,0.2517208,98396.0,98368.0,0.0008604]
[1732332815842,0.0459,98395.0,98360.0,0.07445313]
[1732332816739,0.04399999,98395.0,98360.0,0.07445313]
[1732332816963,0.04399999,98395.0,98361.0,0.0477]
[1732332817173,0.2517208,98396.0,98368.0,0.1309]
[1732332817387,0.2517208,98396.0,98371.0,0.0832]
[1732332817592,0.2517208,98396.0,98372.0,0.00101639]
[1732332817808,0.0017208,98396.0,98372.0,0.00101639]
[1732332818488,0.0017208,98396.0,98371.0,0.0832]
[1732332819844,0.1291,98395.0,98371.0,0.0382]
[1732332820719,0.04809999,98395.0,98371.0,0.0382]
[1732332821851,0.04809999,98395.0,98372.0,0.00101639]
[1732332822065,0.03595899,98395.0,98372.0,0.00101639]
[1732332823807,0.04991639,98394.0,98370.0,0.04191639]
[1732332824430,0.04991639,98394.0,98371.0,0.00101639]
[1732332824855,0.00487537,98395.0,98373.0,0.0452]
[1732332825062,0.00487537,98395.0,98374.0,0.00101639]
[1732332825694,0.00487537,98395.0,98373.0,0.0452]
[1732332827793,0.0489,98394.0,98373.0,0.0002]
[1732332830000,0.22449616,98399.0,98373.0,0.0002]
[1732332830205,0.023,98398.0,98373.0,0.0002]
[1732332831295,0.023,98398.0,98358.0,0.18119089]
[1732332831296,0.0802,98396.0,98364.0,0.09060716]
[1732332831505,0.08121649,98395.0,98364.0,0.09060716]
[1732332831713,0.08121649,98395.0,98365.0,0.00101649]
[1732332831923,0.08121649,98395.0,98364.0,0.04662365]
[1732332831924,0.00127061,98394.0,98364.0,0.04662365]
[1732332832157,0.00127061,98394.0,98365.0,0.00050825]
[1732332832382,0.00127061,98394.0,98355.0,0.00050825]
[1732332832804,0.0802,98393.0,98355.0,0.00050825]
[1732332833007,0.00127061,98392.0,98355.0,0.00050825]
[1732332833216,0.00127061,98392.0,98355.0,0.18169914]
[1732332833662,0.00127061,98392.0,98355.0,0.00050825]
[1732332833869,0.00127061,98392.0,98355.0,0.18169914]
[1732332834500,0.0802,98391.0,98357.0,0.0452]
[1732332834743,0.00127061,98390.0,98358.0,0.04570825]
[1732332834956,0.0004706,98391.0,98358.0,0.22740738]
[1732332835187,0.0004706,98391.0,98359.0,0.23009089]
[1732332835399,0.0004706,98391.0,98360.0,0.04991649]
[1732332835825,0.0004706,98391.0,98360.0,0.00491649]
[1732332836068,0.0462,98390.0,98360.0,0.00491649]
[1732332836285,0.00076237,98389.0,98360.0,0.00491649]
[1732332836727,0.00076237,98389.0,98354.0,0.03275357]
[1732332836728,0.0462,98379.0,98354.0,0.03275357]
[1732332836940,0.0462,98377.0,98354.0,0.03275357]
[1732332837152,0.0462,98375.0,98353.0,0.0008604]
[1732332837425,0.00076237,98374.0,98355.0,0.0008606]
[1732332837871,0.0757,98373.0,98355.0,0.0008606]
[1732332838084,0.00076237,98372.0,98355.0,0.0008606]
[1732332839838,0.00127082,98372.0,98347.0,0.03959947]
[1732332840048,0.00127082,98372.0,98348.0,0.00076261]
[1732332840907,0.04217081,98375.0,98348.0,0.00076261]
[1732332843896,0.00127082,98374.0,98344.0,0.0808196]
[1732332844124,0.00127082,98374.0,98345.0,0.00101666]
[1732332845026,0.03814162,98375.0,98346.0,0.0489]
[1732332845237,0.03814162,98375.0,98347.0,0.00101666]
[1732332847852,0.03814162,98375.0,98346.0,0.0489]
[1732332847853,0.04721666,98374.0,98346.0,0.00491666]
[1732332848076,0.04721666,98374.0,98347.0,0.00101666]
[1732332848973,0.00435827,98375.0,98347.0,0.00101666]
[1732332849211,0.00435827,98375.0,98346.0,0.00491666]
[1732332850690,0.00635827,98375.0,98347.0,0.0008606]
[1732332850927,0.00807947,98375.0,98347.0,0.0008606]
[1732332851155,0.07770318,98370.0,98347.0,0.0008606]
[1732332851825,0.32770318,98370.0,98344.0,0.06965297]
[1732332852056,0.0462,98369.0,98344.0,0.06965297]
[1732332853019,0.25,98370.0,98344.0,0.06965297]
[1732332853251,0.32770318,98370.0,98344.0,0.06965297]
[1732332855961,0.0454,98369.0,98343.0,0.0017206]
[1732332856482,0.0454,98369.0,98343.0,0.03451817]
[1732332856931,0.0454,98369.0,98343.0,0.0017206]